fUST/lending_fUST_20250104
["ID","MTS","AMOUNT","RATE_DAILY","PERIOD"]
[347567856,1735920649328,-163.75,0.00020547,3]
[347567858,1735920649337,-578.99,0.00020547,3]
[347567860,1735920649348,-151.0,0.00020547,2]
[347567861,1735920649358,-500.0,0.00020547,3]
[347567863,1735920649368,-855.61,0.00020547,3]
[347567865,1735920649378,-500.0,0.00020547,3]
[347567867,1735920649389,-500.0,0.00020547,3]
[347567869,1735920649399,-151.0,0.00020547,2]
[347567871,1735920649410,-151.0,0.00020547,2]
[347567873,1735920649420,-1034.41,0.00020547,3]
[347567875,1735920649430,-500.0,0.00020547,3]
[347567876,1735920649440,-584.26,0.00020547,3]
[347567879,1735920649453,-1288.26,0.00020547,3]
[347567880,1735920649462,-761.7,0.00020547,3]
[347567882,1735920649472,-1348.39,0.00020547,3]
[347567884,1735920649481,-1361.92,0.00020547,2]
[347567886,1735920649491,-500.0,0.00020547,3]
[347567888,1735920649500,-1259.08,0.00020547,3]
[347567890,1735920649510,-500.0,0.00020547,3]
[347567891,1735920649519,-2507.3,0.00020547,3]
[347567893,1735920649529,-1105.54,0.00020547,3]
[347567895,1735920649539,-500.0,0.00020547,3]
[347567897,1735920649548,-501.82,0.00020547,2]
[347567899,1735920649560,-3603.94,0.00020547,3]
[347567901,1735920649570,-500.0,0.00020547,3]
[347567903,1735920649579,-3644.18,0.00020547,3]
[347567905,1735920649588,-673.21,0.00020547,3]
[347567906,1735920649598,-892.93,0.00020547,3]
[347567908,1735920649608,-151.0,0.00020547,2]
[347567910,1735920649617,-500.0,0.00020547,3]
[347567912,1735920649627,-500.0,0.00020547,3]
[347567914,1735920649637,-500.0,0.00020547,3]
[347567916,1735920649647,-6470.67,0.00020547,3]
[347567918,1735920649657,-334.74146515,0.00020547,3]
[347567919,1735920649669,-500.0,0.00020547,3]
[347567921,1735920649679,-751.18,0.00020547,3]
[347567923,1735920649688,-2211.08,0.00020547,3]
[347567925,1735920649698,-584.95,0.00020547,3]
[347567927,1735920649707,-1393.72,0.00020547,3]
[347567929,1735920649716,-500.0,0.00020547,3]
[347567931,1735920649726,-500.0,0.00020547,3]
[347567933,1735920649735,-1078.67,0.00020547,3]
[347567934,1735920649745,-500.0,0.00020547,3]
[347567936,1735920649754,-500.0,0.00020547,3]
[347567938,1735920649763,-500.0,0.00020547,3]
[347567940,1735920649772,-2287.73,0.00020547,3]
[347567942,1735920649782,-2708.2,0.00020547,3]
[347567944,1735920649791,-500.0,0.00020547,3]
[347567945,1735920649801,-500.0,0.00020547,3]
[347567947,1735920649810,-500.0,0.00020547,3]
[347567949,1735920649820,-1928.07,0.00020547,3]
[347567951,1735920649829,-527.68,0.00020547,3]
[347567953,1735920649839,-1248.05,0.00020547,3]
[347567955,1735920649848,-562.92,0.00020547,3]
[347567956,1735920649857,-704.95,0.00020547,3]
[347567958,1735920649866,-2888.12,0.00020547,3]
[347567960,1735920649875,-2580.17,0.00020547,3]
[347567962,1735920649885,-1000.23,0.00020547,3]
[347567964,1735920649894,-151.0,0.00020668,6]
[347567966,1735920649903,-187.587171,0.00020712,2]
[347567968,1735920649913,-500.0,0.00020719,2]
[347567969,1735920649926,-2078.33460352,0.00020721,2]
[347567971,1735920649935,-637.0,0.000208,9]
[347567973,1735920649943,-151.0,0.00020821,2]
[347567975,1735920649953,-500.0,0.00020821,3]
[347567977,1735920649963,-500.0,0.00020821,3]
[347567979,1735920649972,-169.349035,0.00020821,2]
[347567980,1735920649981,-169.349035,0.00020821,2]
[347567982,1735920649990,-500.0,0.00020821,3]
[347567984,1735920649999,-527.78,0.00020821,3]
[347567986,1735920650008,-1108.67,0.00020821,3]
[347567988,1735920650018,-7289.04,0.00020821,3]
[347567990,1735920650027,-520.37,0.00020821,3]
[347567992,1735920650036,-169.02,0.00020821,3]
[347567993,1735920650045,-625.73,0.00020821,3]
[347567995,1735920650057,-500.0,0.00020821,3]
[347567997,1735920650069,-573.21,0.00020821,3]
[347567999,1735920650079,-1379.31,0.00020821,3]
[347568001,1735920650089,-500.0,0.00020821,3]
[347568003,1735920650098,-500.0,0.00020821,3]
[347568005,1735920650108,-500.0,0.00020821,3]
[347568007,1735920650117,-500.0,0.00020821,3]
[347568009,1735920650126,-651.01,0.00020821,3]
[347568011,1735920650135,-500.0,0.00020821,3]
[347568013,1735920650145,-978.35,0.00020821,3]
[347568015,1735920650154,-500.0,0.00020821,3]
[347568016,1735920650163,-962.5,0.00020821,3]
[347568018,1735920650175,-938.77,0.00020821,3]
[347568020,1735920650187,-500.0,0.00020821,3]
[347568022,1735920650198,-500.0,0.00020821,3]
[347568024,1735920650207,-592.06,0.00020821,3]
[347568026,1735920650217,-500.0,0.00020821,3]
[347568028,1735920650227,-500.0,0.00020821,3]
[347568030,1735920650236,-509.07,0.00020821,3]
[347568031,1735920650245,-151.0,0.00020821,2]
[347568033,1735920650255,-500.0,0.00020821,3]
[347568035,1735920650265,-500.0,0.00020821,3]
[347568037,1735920650276,-575.25,0.00020821,3]
[347568039,1735920650285,-1001.39,0.00020821,3]
[347568041,1735920650294,-626.4,0.00020821,3]
[347568043,1735920650304,-500.0,0.00020821,3]
[347568045,1735920650313,-844.91,0.00020821,3]
[347568046,1735920650323,-578.99,0.00020821,3]
[347568048,1735920650332,-151.0,0.00020821,2]
[347568050,1735920650341,-500.0,0.00020821,3]
[347568052,1735920650350,-855.61,0.00020821,3]
[347568054,1735920650359,-500.0,0.00020821,3]
[347568056,1735920650369,-500.0,0.00020821,3]
[347568058,1735920650378,-151.0,0.00020821,2]
[347568059,1735920650390,-151.0,0.00020821,2]
[347568061,1735920650399,-1034.41,0.00020821,3]
[347568063,1735920650409,-500.0,0.00020821,3]
[347568065,1735920650420,-584.26,0.00020821,3]
[347568067,1735920650429,-1288.26,0.00020821,3]
[347568069,1735920650439,-761.7,0.00020821,3]
[347568071,1735920650448,-1348.39,0.00020821,3]
[347568073,1735920650458,-1361.92,0.00020821,2]
[347568074,1735920650467,-500.0,0.00020821,3]
[347568076,1735920650477,-1259.08,0.00020821,3]
[347568078,1735920650487,-500.0,0.00020821,3]
[347568080,1735920650497,-2507.3,0.00020821,3]
[347568082,1735920650506,-1105.54,0.00020821,3]
[347568084,1735920650516,-520.62,0.00020821,3]
[347568086,1735920650526,-501.82,0.00020821,2]
[347568088,1735920650535,-3603.94,0.00020821,3]
[347568090,1735920650545,-500.0,0.00020821,3]
[347568092,1735920650554,-3644.18,0.00020821,3]
[347568094,1735920650564,-673.21,0.00020821,3]
[347568095,1735920650574,-892.93,0.00020821,3]
[347568097,1735920650583,-500.0,0.00020821,3]
[347568099,1735920650592,-500.0,0.00020821,3]
[347568101,1735920650602,-500.0,0.00020821,3]
[347568103,1735920650612,-6470.67,0.00020821,3]
[347568105,1735920650623,-751.18,0.00020821,3]
[347568106,1735920650633,-151.0,0.00020821,2]
[347568107,1735920650643,-2211.08,0.00020821,3]
[347568108,1735920650652,-584.95,0.00020821,3]
[347568109,1735920650661,-1393.72,0.00020821,3]
[347568110,1735920650672,-500.0,0.00020821,3]
[347568111,1735920650681,-500.0,0.00020821,3]
[347568112,1735920650691,-1078.67,0.00020821,3]
[347568113,1735920650700,-231.10516,0.00020821,2]
[347568114,1735920650709,-500.0,0.00020821,3]
[347568115,1735920650718,-500.0,0.00020821,3]
[347568116,1735920650728,-2287.73,0.00020821,3]
[347568117,1735920650737,-500.0,0.00020821,3]
[347568118,1735920650746,-2708.2,0.00020821,3]
[347568119,1735920650756,-500.0,0.00020821,3]
[347568120,1735920650765,-500.0,0.00020821,3]
[347568121,1735920650774,-500.0,0.00020821,3]
[347568122,1735920650783,-1928.07,0.00020821,3]
[347568123,1735920650792,-527.68,0.00020821,3]
[347568124,1735920650801,-1248.05,0.00020821,3]
[347568125,1735920650810,-562.92,0.00020821,3]
[347568126,1735920650819,-704.95,0.00020821,3]
[347568127,1735920650829,-2888.12,0.00020821,3]
[347568128,1735920650838,-2580.17,0.00020821,3]
[347568129,1735920650848,-151.0,0.00020821,2]
[347568130,1735920650857,-1000.23,0.00020821,3]
[347568131,1735920650867,-150.15,0.00020822,2]
[347568132,1735920650876,-150.15,0.00020822,2]
[347568133,1735920650885,-150.15,0.00020822,2]
[347568134,1735920650895,-150.15,0.00020822,2]
[347568135,1735920650905,-150.15,0.00020822,2]
[347568136,1735920650914,-151.0,0.00020839,6]
[347568137,1735920650926,-151.0,0.0002085,2]
[347568138,1735920650935,-186.38601439,0.000209,2]
[347568139,1735920650944,-187.587171,0.00020904,2]
[347568140,1735920650953,-2078.33460352,0.0002093,2]
[347568141,1735920650962,-1000.0,0.00021,21]
[347568142,1735920650971,-200.000001,0.00021,2]
[347568143,1735920650980,-3000.0,0.00021,2]
[347568150,1735920651093,-7338.39,0.00021,2]
[347568152,1735920651103,-2000.0,0.00021,2]
[347568154,1735920651112,-2500.0,0.00021005,2]
[347568156,1735920651122,-3000.0,0.0002101,2]
[347568158,1735920651131,-151.0,0.0002101,6]
[347568160,1735920651140,-151.0,0.0002101,6]
[347568162,1735920651150,-151.0,0.0002101,2]
[347568165,1735920651160,-599.45655816,0.00021016,2]
[347568167,1735920651171,-3000.0,0.0002102,2]
[347568169,1735920651181,-151.0,0.0002102,2]
[347568171,1735920651191,-3000.0,0.0002103,2]
[347568173,1735920651201,-3000.0,0.0002104,2]
[347568175,1735920651211,-1281.16933507,0.0002105,2]
[347568177,1735920651221,-2500.0,0.0002105,2]
[347568179,1735920651230,-3000.0,0.0002105,2]
[347568181,1735920651239,-3000.0,0.0002106,2]
[347568183,1735920651248,-3000.0,0.0002107,2]
[347568185,1735920651258,-3149.373157,0.0002108,2]
[347568187,1735920651267,-5000.0,0.00021091,2]
[347568189,1735920651276,-151.0,0.00021095,2]
[347568191,1735920651286,-345.63,0.00021095,3]
[347568193,1735920651295,-189.191764,0.00021095,2]
[347568195,1735920651304,-189.191764,0.00021095,2]
[347568197,1735920651314,-500.0,0.00021095,3]
[347568199,1735920651323,-169.349035,0.00021095,2]
[347568201,1735920651332,-169.349035,0.00021095,2]
[347568203,1735920651342,-171.48538318,0.00021095,3]
[347568205,1735920651351,-527.78,0.00021095,3]
[347568207,1735920651360,-1108.67,0.00021095,3]
[347568209,1735920651369,-7289.04,0.00021095,3]
[347568211,1735920651378,-520.37,0.00021095,3]
[347568213,1735920651388,-625.73,0.00021095,3]
[347568215,1735920651397,-500.0,0.00021095,3]
[347568217,1735920651406,-573.21,0.00021095,3]
[347568219,1735920651416,-1379.31,0.00021095,3]
[347568221,1735920651425,-500.0,0.00021095,3]
[347568223,1735920651435,-500.0,0.00021095,3]
[347568224,1735920651445,-500.0,0.00021095,3]
[347568226,1735920651454,-651.01,0.00021095,3]
[347568228,1735920651463,-500.0,0.00021095,3]
[347568230,1735920651473,-978.35,0.00021095,3]
[347568232,1735920651483,-500.0,0.00021095,3]
[347568234,1735920651492,-962.5,0.00021095,3]
[347568236,1735920651502,-151.0,0.00021095,2]
[347568239,1735920651512,-938.77,0.00021095,3]
[347568241,1735920651522,-500.0,0.00021095,3]
[347568242,1735920651531,-333.65,0.00021095,3]
[347568244,1735920651541,-592.06,0.00021095,3]
[347568246,1735920651551,-500.0,0.00021095,3]
[347568248,1735920651560,-500.0,0.00021095,3]
[347568250,1735920651569,-509.07,0.00021095,3]
[347568252,1735920651578,-155.531659,0.00021095,2]
[347568254,1735920651590,-500.0,0.00021095,3]
[347568256,1735920651600,-500.0,0.00021095,3]
[347568258,1735920651609,-575.25,0.00021095,3]
[347568261,1735920651619,-1001.39,0.00021095,3]
[347568263,1735920651629,-626.4,0.00021095,3]
[347568265,1735920651639,-500.0,0.00021095,3]
[347568267,1735920651648,-844.91,0.00021095,3]
[347568269,1735920651657,-578.99,0.00021095,3]
[347568271,1735920651667,-151.0,0.00021095,2]
[347568273,1735920651677,-500.0,0.00021095,3]
[347568274,1735920651686,-855.61,0.00021095,3]
[347568277,1735920651696,-500.0,0.00021095,3]
[347568279,1735920651705,-500.0,0.00021095,3]
[347568281,1735920651715,-151.0,0.00021095,2]
[347568283,1735920651725,-1034.41,0.00021095,3]
[347568285,1735920651735,-151.0,0.00021095,2]
[347568287,1735920651744,-500.0,0.00021095,3]
[347568289,1735920651754,-584.26,0.00021095,3]
[347568291,1735920651763,-1288.26,0.00021095,3]
[347568293,1735920651772,-761.7,0.00021095,3]
[347568295,1735920651782,-1348.39,0.00021095,3]
[347568297,1735920651791,-1361.92,0.00021095,2]
[347568299,1735920651800,-500.0,0.00021095,3]
[347568301,1735920651810,-1259.08,0.00021095,3]
[347568303,1735920651819,-500.0,0.00021095,3]
[347568305,1735920651828,-2507.3,0.00021095,3]
[347568307,1735920651838,-1105.54,0.00021095,3]
[347568309,1735920651847,-501.82,0.00021095,2]
[347568311,1735920651857,-3603.94,0.00021095,3]
[347568313,1735920651866,-500.0,0.00021095,3]
[347568315,1735920651875,-3644.18,0.00021095,3]
[347568317,1735920651885,-673.21,0.00021095,3]
[347568319,1735920651894,-892.93,0.00021095,3]
[347568321,1735920651903,-500.0,0.00021095,3]
[347568323,1735920651912,-500.0,0.00021095,3]
[347568325,1735920651925,-500.0,0.00021095,3]
[347568327,1735920651935,-6470.67,0.00021095,3]
[347568329,1735920651946,-751.18,0.00021095,3]
[347568331,1735920651955,-151.0,0.00021095,2]
[347568333,1735920651965,-2211.08,0.00021095,3]
[347568335,1735920651974,-584.95,0.00021095,3]
[347568337,1735920651984,-1393.72,0.00021095,3]
[347568339,1735920651993,-500.0,0.00021095,3]
[347568341,1735920652004,-500.0,0.00021095,3]
[347568343,1735920652013,-1078.67,0.00021095,3]
[347568345,1735920652023,-500.0,0.00021095,3]
[347568347,1735920652032,-500.0,0.00021095,3]
[347568349,1735920652042,-2287.73,0.00021095,3]
[347568351,1735920652051,-500.0,0.00021095,3]
[347568353,1735920652061,-2708.2,0.00021095,3]
[347568355,1735920652071,-500.0,0.00021095,3]
[347568358,1735920652081,-500.0,0.00021095,3]
[347568360,1735920652090,-500.0,0.00021095,3]
[347568362,1735920652099,-1928.07,0.00021095,3]
[347568363,1735920652109,-527.68,0.00021095,3]
[347568365,1735920652118,-1248.05,0.00021095,3]
[347568367,1735920652128,-562.92,0.00021095,3]
[347568369,1735920652137,-704.95,0.00021095,3]
[347568371,1735920652147,-2888.12,0.00021095,3]
[347568373,1735920652157,-2580.17,0.00021095,3]
[347568376,1735920652168,-1000.23,0.00021095,3]
[347568378,1735920652179,-230.533916,0.00021095,2]
[347568379,1735920652188,-187.587171,0.00021096,2]
[347568382,1735920652200,-150.15,0.00021096,2]
[347568384,1735920652209,-150.15,0.00021096,2]
[347568385,1735920652219,-150.15,0.00021096,2]
[347568387,1735920652228,-2461.83,0.000211,2]
[347568390,1735920652238,-8126.8,0.000211,2]
[347568392,1735920652248,-169.0,0.00021101,2]
[347568394,1735920652257,-169.0,0.00021101,2]
[347568396,1735920652267,-171.0,0.00021101,2]
[347568398,1735920652276,-186.31,0.00021103,2]
[347568400,1735920652285,-2078.33460352,0.00021139,2]
[347568402,1735920652295,-5000.0,0.00021142,2]
[347568404,1735920652304,-5000.0,0.00021142,2]
[347568406,1735920652313,-5000.0,0.00021142,2]
[347568408,1735920652322,-5000.0,0.00021142,2]
[347568410,1735920652332,-154.04,0.00021178,2]
[347568411,1735920652341,-187.587171,0.00021288,2]
[347568413,1735920652351,-172.0,0.0002129,2]
[347568416,1735920652362,-2078.33460352,0.00021348,2]
[347568418,1735920652372,-5000.0,0.00021351,2]
[347568420,1735920652381,-5000.0,0.00021351,2]
[347568422,1735920652390,-5000.0,0.00021351,2]
[347568424,1735920652399,-5000.0,0.00021351,2]
[347568426,1735920652409,-5000.0,0.00021351,2]
[347568428,1735920652420,-151.0,0.00021351,2]
[347568430,1735920652430,-189.191764,0.00021369,2]
[347568432,1735920652439,-189.191764,0.00021369,2]
[347568434,1735920652448,-500.0,0.00021369,3]
[347568436,1735920652457,-169.349035,0.00021369,2]
[347568438,1735920652467,-169.349035,0.00021369,2]
[347568440,1735920652477,-527.78,0.00021369,3]
[347568442,1735920652487,-1108.67,0.00021369,3]
[347568444,1735920652496,-7289.04,0.00021369,3]
[347568446,1735920652505,-520.37,0.00021369,3]
[347568448,1735920652514,-625.73,0.00021369,3]
[347568449,1735920652524,-500.0,0.00021369,3]
[347568451,1735920652533,-573.21,0.00021369,3]
[347568453,1735920652542,-1379.31,0.00021369,3]
[347568455,1735920652552,-196.02,0.00021369,3]
[347568457,1735920652561,-500.0,0.00021369,3]
[347568459,1735920652570,-500.0,0.00021369,3]
[347568461,1735920652579,-651.01,0.00021369,3]
[347568463,1735920652588,-500.0,0.00021369,3]
[347568465,1735920652597,-978.35,0.00021369,3]
[347568467,1735920652606,-500.0,0.00021369,3]
[347568469,1735920652615,-962.5,0.00021369,3]
[347568471,1735920652624,-151.0,0.00021369,2]
[347568473,1735920652634,-938.77,0.00021369,3]
[347568475,1735920652644,-500.0,0.00021369,3]
[347568477,1735920652653,-592.06,0.00021369,3]
[347568479,1735920652662,-500.0,0.00021369,3]
[347568481,1735920652675,-500.0,0.00021369,3]
[347568483,1735920652684,-509.07,0.00021369,3]
[347568485,1735920652693,-500.0,0.00021369,3]
[347568487,1735920652703,-387.33869171,0.00021369,3]
[347568489,1735920652712,-575.25,0.00021369,3]
[347568491,1735920652721,-1001.39,0.00021369,3]
[347568493,1735920652731,-626.4,0.00021369,3]
[347568495,1735920652740,-500.0,0.00021369,3]
[347568497,1735920652750,-844.91,0.00021369,3]
[347568499,1735920652759,-578.99,0.00021369,3]
[347568501,1735920652768,-500.0,0.00021369,3]
[347568503,1735920652778,-855.61,0.00021369,3]
[347568505,1735920652787,-500.0,0.00021369,3]
[347568507,1735920652796,-500.0,0.00021369,3]
[347568509,1735920652806,-151.0,0.00021369,2]
[347568511,1735920652816,-1034.41,0.00021369,3]
[347568513,1735920652825,-280.224096,0.00021369,2]
[347568515,1735920652835,-500.0,0.00021369,3]
[347568517,1735920652845,-584.26,0.00021369,3]
[347568519,1735920652854,-1288.26,0.00021369,3]
[347568521,1735920652864,-761.7,0.00021369,3]
[347568523,1735920652873,-1348.39,0.00021369,3]
[347568525,1735920652882,-1361.92,0.00021369,2]
[347568527,1735920652891,-500.0,0.00021369,3]
[347568529,1735920652901,-1259.08,0.00021369,3]
[347568531,1735920652911,-500.0,0.00021369,3]
[347568533,1735920652922,-2507.3,0.00021369,3]
[347568535,1735920652932,-1105.54,0.00021369,3]
[347568537,1735920652942,-501.82,0.00021369,2]
[347568539,1735920652951,-3603.94,0.00021369,3]
[347568541,1735920652960,-500.0,0.00021369,3]
[347568543,1735920652969,-3644.18,0.00021369,3]
[347568545,1735920652979,-673.21,0.00021369,3]
[347568547,1735920652988,-892.93,0.00021369,3]
[347568549,1735920652998,-500.0,0.00021369,3]
[347568551,1735920653007,-500.0,0.00021369,3]
[347568553,1735920653017,-500.0,0.00021369,3]
[347568555,1735920653026,-1381.23348732,0.00021369,3]
[347568590,1735920653358,-500.0,0.00019178,2]
[347568592,1735920653368,-500.0,0.00019178,2]
[347568594,1735920653377,-155.73696298,0.00019178,2]
[347568596,1735920653387,-494.13695306,0.00019178,2]
[347568608,1735920653497,1000.0,0.00025,120]
[347571637,1735920698162,500.0,0.00016609,2]
[347571638,1735920699746,500.0,0.00018801,2]
[347571647,1735921190535,208.711555,0.00013973,2]
[347571660,1735921644144,-193.7389387,0.00018018,2]
[347571661,1735921644166,-274.55281,0.00018099,2]
[347571662,1735921644189,-319.6898658,0.00018141,2]
[347571663,1735921644210,-355.9213229,0.00018157,2]
[347571664,1735921644229,-833.149671,0.00018213,2]
[347571665,1735921644249,-1546.46590774,0.00018853,2]
[347571669,1735921651105,-214.50682394,0.00018853,2]
[347571673,1735921770092,-396.313176,0.00018151,2]
[347571674,1735921770113,-635.15061363,0.00018665,2]
[347571675,1735921770133,-932.19169684,0.00018853,2]
[347571676,1735921770153,-295.66186196,0.000189,2]
[347571732,1735921835678,-188.93279726,0.00019078,2]
[347571734,1735921835688,-411.06720274,0.000191,3]
[347571740,1735921835728,-1026.70009726,0.000191,3]
[347571742,1735921835738,-410.52193341,0.00019173,2]
[347571744,1735921835747,-500.0,0.00019173,2]
[347571746,1735921835760,-154.04,0.00019177,2]
[347571748,1735921835770,-500.0,0.00019177,5]
[347571750,1735921835779,-300.0,0.00019177,2]
[347571752,1735921835789,-873.0,0.00019177,2]
[347571754,1735921835798,-216.0100687,0.00019177,2]
[347571756,1735921835810,-500.0,0.00019177,2]
[347571758,1735921835819,-606.13963822,0.00019177,2]
[347571760,1735921835829,-501.36117921,0.00019178,2]
[347571762,1735921835841,-505.64032406,0.00019178,2]
[347571764,1735921835850,-111.63595717,0.00019178,2]
[347571767,1735921835867,-393.61640224,0.00019178,2]
[347571769,1735921835880,-500.0,0.00019178,2]
[347571771,1735921835889,-501.82662371,0.00019178,2]
[347571773,1735921835901,-500.0,0.00019178,2]
[347571775,1735921835911,-645.24568769,0.00019178,2]
[347571777,1735921835920,-500.0,0.00019178,2]
[347571779,1735921835929,-500.0,0.00019178,2]
[347571781,1735921835938,-500.0,0.00019178,2]
[347571783,1735921835948,-500.0,0.00019178,2]
[347571785,1735921835958,-500.0,0.00019178,2]
[347571787,1735921835967,-500.0,0.00019178,2]
[347571789,1735921835977,-500.0,0.00019178,2]
[347571791,1735921835986,-500.0,0.00019178,2]
[347571793,1735921835995,-570.59860468,0.00019178,2]
[347571795,1735921836005,-500.0,0.00019178,2]
[347571797,1735921836014,-501.539267,0.00019178,2]
[347571799,1735921836025,-436.28760728,0.00019178,2]
[347571801,1735921836034,-500.0,0.00019178,2]
[347571804,1735921836047,-500.561842,0.00019178,2]
[347571806,1735921836056,-500.0,0.00019178,2]
[347571808,1735921836065,-617.49823112,0.00019178,2]
[347571810,1735921836075,-500.0,0.00019178,2]
[347571828,1735921836229,-500.0,0.00019178,2]
[347571830,1735921836240,-500.0,0.00019178,2]
[347571832,1735921836250,-500.0,0.00019178,2]
[347571834,1735921836259,-500.0,0.00019178,2]
[347571836,1735921836269,-500.0,0.00019178,2]
[347571838,1735921836278,-500.0,0.00019178,2]
[347571840,1735921836289,-500.0,0.00019178,2]
[347571842,1735921836299,-500.0,0.00019178,2]
[347571844,1735921836308,-500.0,0.00019178,2]
[347571846,1735921836317,-500.0,0.00019178,2]
[347571848,1735921836326,-500.0,0.00019178,2]
[347571850,1735921836336,-513.92576025,0.00019178,2]
[347571852,1735921836345,-508.17473834,0.00019178,2]
[347571854,1735921836354,-500.56321226,0.00019178,2]
[347571856,1735921836363,-500.0,0.00019178,2]
[347571858,1735921836373,-500.0,0.00019178,2]
[347571860,1735921836383,-500.0,0.00019178,2]
[347571862,1735921836392,-500.0,0.00019178,2]
[347571864,1735921836401,-500.0,0.00019178,2]
[347571866,1735921836411,-500.0,0.00019178,2]
[347571868,1735921836420,-500.0,0.00019178,2]
[347571870,1735921836432,-500.0,0.00019178,2]
[347571872,1735921836443,-500.0,0.00019178,2]
[347571874,1735921836453,-500.0,0.00019178,2]
[347571876,1735921836462,-1000.0,0.00019178,2]
[347571878,1735921836471,-500.0,0.00019178,2]
[347571880,1735921836483,-500.0,0.00019178,2]
[347571883,1735921836493,-296.7367504,0.00019178,2]
[347571885,1735921836503,-500.0,0.00019178,2]
[347571887,1735921836512,-500.0,0.00019178,2]
[347571889,1735921836521,-500.0,0.00019178,2]
[347571891,1735921836531,-500.0,0.00019178,2]
[347571893,1735921836541,-500.0,0.00019178,2]
[347571894,1735921836550,-500.0,0.00019178,2]
[347571896,1735921836560,-500.0,0.00019178,2]
[347571899,1735921836569,-557.5061285,0.00019178,2]
[347571901,1735921836579,-500.0,0.00019178,2]
[347571902,1735921836588,-500.0,0.00019178,2]
[347571905,1735921836598,-500.0,0.00019178,2]
[347571907,1735921836607,-500.0,0.00019178,2]
[347571908,1735921836616,-500.0,0.00019178,2]
[347571910,1735921836626,-500.0,0.00019178,2]
[347571912,1735921836636,-500.0,0.00019178,2]
[347571915,1735921836645,-506.06066382,0.00019178,2]
[347571917,1735921836655,-500.0,0.00019178,2]
[347571918,1735921836664,-500.0,0.00019178,2]
[347571920,1735921836673,-503.2038418,0.00019178,2]
[347571923,1735921836683,-500.0,0.00019178,2]
[347571925,1735921836693,-500.0,0.00019178,2]
[347571927,1735921836702,-507.31617317,0.00019178,2]
[347571929,1735921836711,-500.0,0.00019178,2]
[347571931,1735921836720,-500.0,0.00019178,2]
[347571933,1735921836730,-500.0,0.00019178,2]
[347571935,1735921836739,-500.0,0.00019178,2]
[347571937,1735921836748,-500.0,0.00019178,2]
[347571939,1735921836757,-500.0,0.00019178,2]
[347571941,1735921836767,-500.0,0.00019178,2]
[347571943,1735921836775,-500.0,0.00019178,2]
[347571945,1735921836784,-502.5609407,0.00019178,2]
[347571947,1735921836795,-335.77129011,0.00019178,2]
[347571949,1735921836804,-500.0,0.00019178,2]
[347571951,1735921836813,-500.0,0.00019178,2]
[347571953,1735921836822,-500.0,0.00019178,2]
[347571955,1735921836832,-500.0,0.00019178,2]
[347571957,1735921836841,-500.0,0.00019178,2]
[347571959,1735921836850,-500.0,0.00019178,2]
[347571961,1735921836859,-500.0,0.00019178,2]
[347571963,1735921836868,-500.0,0.00019178,2]
[347571965,1735921836878,-500.0,0.00019178,2]